[Event "January 9 Early 2024"]
[Site "https://www.chess.com"]
[Date "2024.01.11"]
[Round "5"]
[White "Weetik, Vjacheslav"]
[Black "Stojanovski, Sandi"]
[Result "1-0"]
[Board "189"]
[TimeControl "180+1"]
[WhiteFideId "4153472"]
[BlackFideId "1403249"]
[WhiteElo "2763"]
[BlackElo "2557"]
[WhiteTeam "RUS"]
[BlackTeam "DEN"]
[WhiteClock "0:00:03"]
[BlackClock "0:00:02"]

1. d4 {[%clk 0:02:59]}  Nf6 {[%clk 0:02:58]} 2. c4 {[%clk 0:02:59]}  e6 {[%clk 0:02:58]} 3. g3 {[%clk 0:02:59]}  d5 {[%clk 0:02:58]} 4. Nf3 {[%clk 0:02:59]}  c5 {[%clk 0:02:58]} 5. Bg2 {[%clk 0:02:55]}  Nc6 {[%clk 0:02:58]} 6. O-O {[%clk 0:02:52]}  Be7 {[%clk 0:02:57]} 7. cxd5 {[%clk 0:02:49]}  exd5 {[%clk 0:02:56]} 8. Nc3 {[%clk 0:02:47]}  O-O {[%clk 0:02:55]} 9. dxc5 {[%clk 0:02:41]}  Bxc5 {[%clk 0:02:55]} 10. Na4 {[%clk 0:02:40]}  Be7 {[%clk 0:02:53]} 11. Be3 {[%clk 0:02:39]}  Bg4 {[%clk 0:02:33]} 12. Rc1 {[%clk 0:02:13]}  Re8 {[%clk 0:02:33]} 13. Bc5 {[%clk 0:02:11]}  Qd7 {[%clk 0:02:10]} 14. Re1 {[%clk 0:01:57]}  Rad8 {[%clk 0:02:04]} 15. Nd4 {[%clk 0:01:50]}  Ne5 {[%clk 0:01:27]} 16. Bxa7 {[%clk 0:01:05]}  Bb4 {[%clk 0:01:01]} 17. Rf1 {[%clk 0:00:44]}  Nc6 {[%clk 0:00:40]} 18. Bc5 {[%clk 0:00:40]}  Nxd4 {[%clk 0:00:35]} 19. Qxd4 {[%clk 0:00:40]}  Qxa4 {[%clk 0:00:22]} 20. Bxb4 {[%clk 0:00:29]}  Bxe2 {[%clk 0:00:16]} 21. Rfe1 {[%clk 0:00:29]}  Qxa2 {[%clk 0:00:15]} 22. Bc3 {[%clk 0:00:25]}  Qc4 {[%clk 0:00:13]} 23. Qd2 {[%clk 0:00:13]}  Qd3 {[%clk 0:00:12]} 24. Qxd3 {[%clk 0:00:08]}  Bxd3 {[%clk 0:00:13]} 25. Rxe8+ {[%clk 0:00:03]}  Rxe8 {[%clk 0:00:13]} 26. Bxf6 {[%clk 0:00:03]}  gxf6 {[%clk 0:00:12]} 27. Bxd5 {[%clk 0:00:04]}  Ba6 {[%clk 0:00:11]} 28. h4 {[%clk 0:00:03]}  Rd8 {[%clk 0:00:09]} 29. Be4 {[%clk 0:00:02]}  Rd2 {[%clk 0:00:07]} 30. b3 {[%clk 0:00:01]}  Rd4 {[%clk 0:00:06]} 31. Bf3 {[%clk 0:00:01]}  Rd3 {[%clk 0:00:05]} 32. Be4 {[%clk 0:00:01]}  Rd4 {[%clk 0:00:05]} 33. Rc8+ {[%clk 0:00:01]}  Kg7 {[%clk 0:00:04]} 34. Bf5 {[%clk 0:00:02]}  Rd5 {[%clk 0:00:03]} 35. Bg4 {[%clk 0:00:02]}  Rd4 {[%clk 0:00:03]} 36. Bf3 {[%clk 0:00:02]}  Rd3 {[%clk 0:00:02]} 37. Be4 {[%clk 0:00:02]}  Rxb3 {[%clk 0:00:02]} 38. Rc7 {[%clk 0:00:03]} 1-0

[Event "January 9 Early 2024"]
[Site "https://www.chess.com"]
[Date "2024.01.11"]
[Round "5"]
[White "Christiansen, Johan-Sebastian"]
[Black "Jakubowski, Krzysztof"]
[Result "1-0"]
[Board "191"]
[TimeControl "180+1"]
[WhiteFideId "1512668"]
[BlackFideId "1112848"]
[WhiteElo "2894"]
[BlackElo "2674"]
[WhiteTeam "NOR"]
[BlackTeam "POL"]
[WhiteClock "0:00:26"]
[BlackClock "0:00:01"]

1. e4 {[%clk 0:03:00]}  c5 {[%clk 0:02:59]} 2. Nf3 {[%clk 0:02:59]}  e6 {[%clk 0:02:59]} 3. c3 {[%clk 0:02:58]}  Nf6 {[%clk 0:02:58]} 4. Bd3 {[%clk 0:02:57]}  Nc6 {[%clk 0:02:47]} 5. Bc2 {[%clk 0:02:57]}  d5 {[%clk 0:02:45]} 6. e5 {[%clk 0:02:57]}  Nd7 {[%clk 0:02:45]} 7. d4 {[%clk 0:02:58]}  h6 {[%clk 0:02:42]} 8. O-O {[%clk 0:02:57]}  b5 {[%clk 0:02:40]} 9. Re1 {[%clk 0:02:53]}  a5 {[%clk 0:02:36]} 10. Nbd2 {[%clk 0:02:47]}  Ba6 {[%clk 0:02:31]} 11. Nf1 {[%clk 0:02:46]}  Qb6 {[%clk 0:02:23]} 12. Ng3 {[%clk 0:02:46]}  g6 {[%clk 0:02:23]} 13. h4 {[%clk 0:02:46]}  a4 {[%clk 0:02:16]} 14. a3 {[%clk 0:02:43]}  Na5 {[%clk 0:02:13]} 15. h5 {[%clk 0:02:39]}  g5 {[%clk 0:02:12]} 16. Nh2 {[%clk 0:02:39]}  cxd4 {[%clk 0:02:07]} 17. cxd4 {[%clk 0:02:39]}  Nc4 {[%clk 0:02:02]} 18. Ng4 {[%clk 0:02:39]}  Bg7 {[%clk 0:01:39]} 19. Kh2 {[%clk 0:02:39]}  O-O-O {[%clk 0:01:39]} 20. b3 {[%clk 0:02:35]}  axb3 {[%clk 0:01:37]} 21. Bxb3 {[%clk 0:02:36]}  Qb7 {[%clk 0:01:24]} 22. Bxc4 {[%clk 0:02:34]}  dxc4 {[%clk 0:01:15]} 23. Qc2 {[%clk 0:02:28]}  Nb6 {[%clk 0:01:12]} 24. Be3 {[%clk 0:02:20]}  Nd5 {[%clk 0:01:06]} 25. Ne4 {[%clk 0:02:20]}  Bf8 {[%clk 0:01:06]} 26. Rab1 {[%clk 0:02:15]}  Qc6 {[%clk 0:01:03]} 27. Bd2 {[%clk 0:01:58]}  Rd7 {[%clk 0:00:53]} 28. f3 {[%clk 0:01:56]}  Be7 {[%clk 0:00:52]} 29. Qb2 {[%clk 0:01:50]}  Ra7 {[%clk 0:00:43]} 30. Rec1 {[%clk 0:01:48]}  Kd7 {[%clk 0:00:43]} 31. Ngf6+ {[%clk 0:01:37]}  Bxf6 {[%clk 0:00:41]} 32. exf6 {[%clk 0:01:36]}  Qc7+ {[%clk 0:00:38]} 33. Kh1 {[%clk 0:01:35]}  g4 {[%clk 0:00:34]} 34. fxg4 {[%clk 0:01:27]}  Rb8 {[%clk 0:00:24]} 35. Qc2 {[%clk 0:01:22]}  Kc6 {[%clk 0:00:17]} 36. Bxh6 {[%clk 0:01:17]}  Rh8 {[%clk 0:00:15]} 37. Bg7 {[%clk 0:01:06]}  Raa8 {[%clk 0:00:15]} 38. Qf2 {[%clk 0:01:02]}  Rh7 {[%clk 0:00:14]} 39. Ng5 {[%clk 0:00:57]}  Rhh8 {[%clk 0:00:10]} 40. Qf3 {[%clk 0:00:54]}  Qf4 {[%clk 0:00:10]} 41. Qxf4 {[%clk 0:00:49]}  Nxf4 {[%clk 0:00:10]} 42. Bxh8 {[%clk 0:00:44]}  Rxh8 {[%clk 0:00:11]} 43. Nxf7 {[%clk 0:00:45]}  Rf8 {[%clk 0:00:11]} 44. Ne5+ {[%clk 0:00:46]}  Kd5 {[%clk 0:00:11]} 45. g5 {[%clk 0:00:30]}  Kxd4 {[%clk 0:00:09]} 46. Ng6 {[%clk 0:00:25]}  Nxg6 {[%clk 0:00:07]} 47. hxg6 {[%clk 0:00:26]}  c3 {[%clk 0:00:01]} 48. g7 {[%clk 0:00:26]} 1-0

[Event "January 9 Early 2024"]
[Site "https://www.chess.com"]
[Date "2024.01.11"]
[Round "5"]
[White "Balla, Tamas-Kristof"]
[Black "Arslanov, Shamil"]
[Result "1-0"]
[Board "192"]
[TimeControl "180+1"]
[WhiteFideId "1208497"]
[BlackFideId "4192826"]
[WhiteElo "2479"]
[BlackElo "2623"]
[WhiteTeam "ROU"]
[BlackTeam "RUS"]
[WhiteClock "0:00:04"]
[BlackClock "0:00:02"]

1. e4 {[%clk 0:03:00]}  d6 {[%clk 0:02:59]} 2. d4 {[%clk 0:03:00]}  e5 {[%clk 0:03:00]} 3. Nf3 {[%clk 0:02:58]}  Bg4 {[%clk 0:02:59]} 4. dxe5 {[%clk 0:02:53]}  Nc6 {[%clk 0:02:59]} 5. Bb5 {[%clk 0:02:49]}  Qd7 {[%clk 0:02:55]} 6. exd6 {[%clk 0:02:35]}  Bxd6 {[%clk 0:02:53]} 7. e5 {[%clk 0:02:36]}  Bxf3 {[%clk 0:02:49]} 8. Qxf3 {[%clk 0:02:33]}  Bxe5 {[%clk 0:02:49]} 9. O-O {[%clk 0:02:27]}  Nge7 {[%clk 0:02:40]} 10. Bg5 {[%clk 0:02:26]}  Bxb2 {[%clk 0:02:29]} 11. Bxe7 {[%clk 0:02:23]}  Kxe7 {[%clk 0:02:04]} 12. Rd1 {[%clk 0:01:37]}  Nd4 {[%clk 0:01:21]} 13. Qe3+ {[%clk 0:00:59]}  Qe6 {[%clk 0:01:18]} 14. Qd2 {[%clk 0:00:55]}  Rhd8 {[%clk 0:00:34]} 15. Qb4+ {[%clk 0:00:52]}  c5 {[%clk 0:00:20]} 16. Qxb2 {[%clk 0:00:48]}  Ne2+ {[%clk 0:00:16]} 17. Bxe2 {[%clk 0:00:31]}  Rxd1+ {[%clk 0:00:16]} 18. Bf1 {[%clk 0:00:31]}  Qe2 {[%clk 0:00:07]} 19. Qxb7+ {[%clk 0:00:25]}  Kd6 {[%clk 0:00:07]} 20. Nd2 {[%clk 0:00:23]}  Re8 {[%clk 0:00:03]} 21. Rxd1 {[%clk 0:00:19]}  Qxd1 {[%clk 0:00:04]} 22. Nc4+ {[%clk 0:00:19]}  Ke6 {[%clk 0:00:02]} 23. Qe4+ {[%clk 0:00:09]}  Kd7 {[%clk 0:00:02]} 24. Qf5+ {[%clk 0:00:09]}  Ke7 {[%clk 0:00:01]} 25. Qxc5+ {[%clk 0:00:09]}  Kf6 {[%clk 0:00:02]} 26. Qc6+ {[%clk 0:00:08]}  Ke7 {[%clk 0:00:02]} 27. Qc5+ {[%clk 0:00:07]}  Kf6 {[%clk 0:00:02]} 28. Ne3 {[%clk 0:00:05]}  Qd7 {[%clk 0:00:01]} 29. Qc3+ {[%clk 0:00:04]}  Ke7 {[%clk 0:00:01]} 30. Qb4+ {[%clk 0:00:03]}  Kf6 {[%clk 0:00:01]} 31. Qf4+ {[%clk 0:00:03]}  Ke7 {[%clk 0:00:01]} 32. Qb4+ {[%clk 0:00:04]}  Kf6 {[%clk 0:00:02]} 33. Bd3 {[%clk 0:00:04]}  g6 {[%clk 0:00:02]} 34. Ng4+ {[%clk 0:00:04]}  Kg7 {[%clk 0:00:02]} 35. Qc3+ {[%clk 0:00:05]}  f6 {[%clk 0:00:02]} 36. Qxf6+ {[%clk 0:00:03]}  Kg8 {[%clk 0:00:02]} 37. Nh6# {[%clk 0:00:04]} 1-0

[Event "January 9 Early 2024"]
[Site "https://www.chess.com"]
[Date "2024.01.11"]
[Round "5"]
[White "Chigaev, Maksim"]
[Black "Bortnyk, Olexandr"]
[Result "1-0"]
[Board "197"]
[TimeControl "180+1"]
[WhiteFideId "4108116"]
[BlackFideId "14120828"]
[WhiteElo "2975"]
[BlackElo "3115"]
[WhiteTeam "ESP"]
[BlackTeam "UKR"]
[WhiteClock "0:00:06"]
[BlackClock "0:00:03"]

1. c4 {[%clk 0:03:00]}  Nf6 {[%clk 0:02:57]} 2. g3 {[%clk 0:03:01]}  g6 {[%clk 0:02:57]} 3. Bg2 {[%clk 0:03:01]}  Bg7 {[%clk 0:02:57]} 4. Nc3 {[%clk 0:03:01]}  O-O {[%clk 0:02:52]} 5. Nf3 {[%clk 0:02:59]}  d6 {[%clk 0:02:53]} 6. O-O {[%clk 0:02:59]}  Bf5 {[%clk 0:02:23]} 7. Qb3 {[%clk 0:02:39]}  Nc6 {[%clk 0:01:43]} 8. Qxb7 {[%clk 0:02:01]}  Na5 {[%clk 0:01:43]} 9. Qa6 {[%clk 0:01:52]}  c5 {[%clk 0:01:42]} 10. d4 {[%clk 0:01:25]}  Bc8 {[%clk 0:01:25]} 11. Qb5 {[%clk 0:01:24]}  Bd7 {[%clk 0:01:25]} 12. Qa6 {[%clk 0:01:24]}  Bc8 {[%clk 0:00:47]} 13. Qb5 {[%clk 0:01:22]}  Be6 {[%clk 0:00:39]} 14. dxc5 {[%clk 0:01:07]}  Rb8 {[%clk 0:00:34]} 15. Qa4 {[%clk 0:01:05]}  dxc5 {[%clk 0:00:35]} 16. Rd1 {[%clk 0:00:51]}  Nd7 {[%clk 0:00:33]} 17. Ng5 {[%clk 0:00:46]}  Bf5 {[%clk 0:00:29]} 18. e4 {[%clk 0:00:39]}  Rb4 {[%clk 0:00:29]} 19. Qc2 {[%clk 0:00:31]}  Bg4 {[%clk 0:00:30]} 20. f3 {[%clk 0:00:32]}  h6 {[%clk 0:00:30]} 21. fxg4 {[%clk 0:00:18]}  hxg5 {[%clk 0:00:30]} 22. b3 {[%clk 0:00:18]}  Bd4+ {[%clk 0:00:19]} 23. Kh1 {[%clk 0:00:18]}  e6 {[%clk 0:00:20]} 24. Bd2 {[%clk 0:00:15]}  Qf6 {[%clk 0:00:18]} 25. Rf1 {[%clk 0:00:14]}  Qe5 {[%clk 0:00:15]} 26. Rad1 {[%clk 0:00:14]}  Nf6 {[%clk 0:00:14]} 27. Ne2 {[%clk 0:00:14]}  Nc6 {[%clk 0:00:09]} 28. Bxb4 {[%clk 0:00:06]}  Nxb4 {[%clk 0:00:10]} 29. Qd2 {[%clk 0:00:07]}  Nc6 {[%clk 0:00:09]} 30. Nxd4 {[%clk 0:00:05]}  cxd4 {[%clk 0:00:06]} 31. b4 {[%clk 0:00:06]}  Nxg4 {[%clk 0:00:06]} 32. b5 {[%clk 0:00:06]}  Nb8 {[%clk 0:00:01]} 33. Qxd4 {[%clk 0:00:06]}  Qc7 {[%clk 0:00:01]} 34. e5 {[%clk 0:00:06]}  Nxe5 {[%clk 0:00:01]} 35. c5 {[%clk 0:00:06]}  Nbd7 {[%clk 0:00:01]} 36. c6 {[%clk 0:00:06]}  Nb6 {[%clk 0:00:02]} 37. Rfe1 {[%clk 0:00:04]}  f6 {[%clk 0:00:02]} 38. a4 {[%clk 0:00:05]}  Nc8 {[%clk 0:00:02]} 39. Qc5 {[%clk 0:00:05]}  Kf7 {[%clk 0:00:01]} 40. a5 {[%clk 0:00:05]}  Qxa5 {[%clk 0:00:02]} 41. Rxe5 {[%clk 0:00:05]}  fxe5 {[%clk 0:00:02]} 42. Rf1+ {[%clk 0:00:05]}  Kg7 {[%clk 0:00:02]} 43. Qxf8+ {[%clk 0:00:05]}  Kh7 {[%clk 0:00:03]} 44. Rf7# {[%clk 0:00:06]} 1-0

[Event "January 9 Early 2024"]
[Site "https://www.chess.com"]
[Date "2024.01.11"]
[Round "5"]
[White "Khamdamova, Afruza"]
[Black "Ratnesan, Ranesh"]
[Result "0-1"]
[Board "199"]
[TimeControl "180+1"]
[WhiteFideId "14210444"]
[BlackFideId "439339"]
[WhiteElo "2523"]
[BlackElo "2323"]
[WhiteTeam "UZB"]
[BlackTeam "ENG"]
[WhiteClock "0:00:03"]
[BlackClock "0:00:10"]

1. e4 {[%clk 0:02:59]}  c5 {[%clk 0:02:17]} 2. Nf3 {[%clk 0:02:56]}  d6 {[%clk 0:02:16]} 3. d4 {[%clk 0:02:56]}  cxd4 {[%clk 0:02:17]} 4. Nxd4 {[%clk 0:02:56]}  Nf6 {[%clk 0:02:18]} 5. Nc3 {[%clk 0:02:56]}  a6 {[%clk 0:02:18]} 6. Bg5 {[%clk 0:02:56]}  e6 {[%clk 0:02:19]} 7. Qe2 {[%clk 0:02:55]}  Be7 {[%clk 0:02:19]} 8. f4 {[%clk 0:02:54]}  Qc7 {[%clk 0:02:10]} 9. O-O-O {[%clk 0:02:53]}  Nbd7 {[%clk 0:02:11]} 10. g4 {[%clk 0:02:50]}  b5 {[%clk 0:02:06]} 11. a3 {[%clk 0:02:49]}  Bb7 {[%clk 0:02:06]} 12. Bg2 {[%clk 0:02:48]}  Rc8 {[%clk 0:01:54]} 13. Kb1 {[%clk 0:02:37]}  h6 {[%clk 0:01:48]} 14. Bxf6 {[%clk 0:02:35]}  Nxf6 {[%clk 0:01:44]} 15. h4 {[%clk 0:02:28]}  Nd7 {[%clk 0:01:37]} 16. g5 {[%clk 0:02:12]}  hxg5 {[%clk 0:01:30]} 17. hxg5 {[%clk 0:02:11]}  Rxh1 {[%clk 0:01:30]} 18. Rxh1 {[%clk 0:02:10]}  g6 {[%clk 0:01:31]} 19. f5 {[%clk 0:01:47]}  Nf8 {[%clk 0:01:07]} 20. f6 {[%clk 0:01:31]}  Bd8 {[%clk 0:01:02]} 21. Rh8 {[%clk 0:01:31]}  Qc5 {[%clk 0:00:58]} 22. Nb3 {[%clk 0:01:19]}  Qxg5 {[%clk 0:00:55]} 23. a4 {[%clk 0:00:47]}  Bxf6 {[%clk 0:00:49]} 24. Rh3 {[%clk 0:00:46]}  Bxc3 {[%clk 0:00:34]} 25. bxc3 {[%clk 0:00:45]}  bxa4 {[%clk 0:00:34]} 26. Nd4 {[%clk 0:00:42]}  Qa5 {[%clk 0:00:28]} 27. Qd2 {[%clk 0:00:21]}  a3 {[%clk 0:00:18]} 28. Ka2 {[%clk 0:00:21]}  Qa4 {[%clk 0:00:17]} 29. Nb3 {[%clk 0:00:20]}  Bxe4 {[%clk 0:00:16]} 30. Bxe4 {[%clk 0:00:19]}  Qxe4 {[%clk 0:00:17]} 31. Re3 {[%clk 0:00:19]}  Qc6 {[%clk 0:00:15]} 32. Rd3 {[%clk 0:00:19]}  d5 {[%clk 0:00:15]} 33. Qg5 {[%clk 0:00:15]}  Qc4 {[%clk 0:00:13]} 34. Qf6 {[%clk 0:00:14]}  a5 {[%clk 0:00:13]} 35. Rf3 {[%clk 0:00:14]}  Rc7 {[%clk 0:00:12]} 36. Rd3 {[%clk 0:00:10]}  a4 {[%clk 0:00:12]} 37. Rd4 {[%clk 0:00:10]}  Qxc3 {[%clk 0:00:11]} 38. Qe5 {[%clk 0:00:03]}  Qb2# {[%clk 0:00:10]} 0-1

[Event "January 9 Early 2024"]
[Site "https://www.chess.com"]
[Date "2024.01.11"]
[Round "5"]
[White "Nord, Alexander"]
[Black "Sakun, Volodymyr"]
[Result "1/2-1/2"]
[Board "203"]
[TimeControl "180+1"]
[WhiteFideId "1738135"]
[BlackFideId "14114062"]
[WhiteElo "2341"]
[BlackElo "2609"]
[WhiteTeam "SWE"]
[BlackTeam "UKR"]
[WhiteClock "0:00:11"]
[BlackClock "0:00:14"]

1. d4 {[%clk 0:03:00]}  d5 {[%clk 0:02:59]} 2. c4 {[%clk 0:02:59]}  e6 {[%clk 0:02:59]} 3. Nc3 {[%clk 0:02:56]}  Nf6 {[%clk 0:02:59]} 4. cxd5 {[%clk 0:02:56]}  exd5 {[%clk 0:02:58]} 5. Bg5 {[%clk 0:02:56]}  Be7 {[%clk 0:02:58]} 6. e3 {[%clk 0:02:56]}  c6 {[%clk 0:02:58]} 7. Bd3 {[%clk 0:02:56]}  Nbd7 {[%clk 0:02:57]} 8. Nf3 {[%clk 0:02:56]}  h6 {[%clk 0:02:56]} 9. Bh4 {[%clk 0:02:55]}  O-O {[%clk 0:02:56]} 10. O-O {[%clk 0:02:54]}  Re8 {[%clk 0:02:57]} 11. Qc2 {[%clk 0:02:46]}  Ne4 {[%clk 0:02:55]} 12. Bxe7 {[%clk 0:02:45]}  Qxe7 {[%clk 0:02:54]} 13. Nd2 {[%clk 0:02:44]}  Ndf6 {[%clk 0:02:49]} 14. Rae1 {[%clk 0:02:39]}  Bf5 {[%clk 0:02:22]} 15. f3 {[%clk 0:02:15]}  Nxd2 {[%clk 0:02:21]} 16. Qxd2 {[%clk 0:02:16]}  Bxd3 {[%clk 0:02:21]} 17. Qxd3 {[%clk 0:02:17]}  Qb4 {[%clk 0:02:10]} 18. Re2 {[%clk 0:02:12]}  Rad8 {[%clk 0:01:59]} 19. a3 {[%clk 0:02:11]}  Qa5 {[%clk 0:01:58]} 20. g4 {[%clk 0:01:51]}  c5 {[%clk 0:01:52]} 21. dxc5 {[%clk 0:01:34]}  Qxc5 {[%clk 0:01:53]} 22. Nb5 {[%clk 0:01:31]}  Qc4 {[%clk 0:01:31]} 23. Rd1 {[%clk 0:01:21]}  Qxd3 {[%clk 0:01:15]} 24. Rxd3 {[%clk 0:01:20]}  a6 {[%clk 0:01:16]} 25. Nc3 {[%clk 0:01:17]}  Rd7 {[%clk 0:01:07]} 26. Red2 {[%clk 0:01:15]}  Rde7 {[%clk 0:01:00]} 27. Kf2 {[%clk 0:01:10]}  g5 {[%clk 0:01:00]} 28. Re2 {[%clk 0:00:53]}  Re5 {[%clk 0:00:48]} 29. Rd4 {[%clk 0:00:31]}  Kg7 {[%clk 0:00:47]} 30. Rb4 {[%clk 0:00:29]}  R8e7 {[%clk 0:00:45]} 31. Rd4 {[%clk 0:00:28]}  Kg6 {[%clk 0:00:44]} 32. Rd3 {[%clk 0:00:24]}  h5 {[%clk 0:00:43]} 33. h3 {[%clk 0:00:24]}  hxg4 {[%clk 0:00:43]} 34. hxg4 {[%clk 0:00:24]}  b5 {[%clk 0:00:41]} 35. Red2 {[%clk 0:00:23]}  R7e6 {[%clk 0:00:36]} 36. Na2 {[%clk 0:00:20]}  Kg7 {[%clk 0:00:26]} 37. Nb4 {[%clk 0:00:19]}  Kg6 {[%clk 0:00:26]} 38. Nxd5 {[%clk 0:00:14]}  Nxd5 {[%clk 0:00:26]} 39. Rxd5 {[%clk 0:00:14]}  Rxe3 {[%clk 0:00:26]} 40. Rd6 {[%clk 0:00:13]}  Re5 {[%clk 0:00:24]} 41. Rxe6+ {[%clk 0:00:13]}  Rxe6 {[%clk 0:00:24]} 42. Rd3 {[%clk 0:00:12]}  f5 {[%clk 0:00:22]} 43. gxf5+ {[%clk 0:00:12]}  Kxf5 {[%clk 0:00:23]} 44. Kg3 {[%clk 0:00:12]}  Re1 {[%clk 0:00:16]} 45. b4 {[%clk 0:00:11]}  Rg1+ {[%clk 0:00:16]} 46. Kf2 {[%clk 0:00:11]}  Ra1 {[%clk 0:00:15]} 47. Kg3 {[%clk 0:00:11]}  Rg1+ {[%clk 0:00:15]} 48. Kf2 {[%clk 0:00:11]}  Ra1 {[%clk 0:00:14]} 49. Kg3 {[%clk 0:00:11]}  Rg1+ {[%clk 0:00:14]} 1/2-1/2

[Event "January 9 Early 2024"]
[Site "https://www.chess.com"]
[Date "2024.01.11"]
[Round "5"]
[White "Hercegovac, Neven"]
[Black "Gokerkan, Cem Kaan"]
[Result "0-1"]
[Board "206"]
[TimeControl "180+1"]
[WhiteFideId "2839135"]
[BlackFideId "6336760"]
[WhiteElo "2342"]
[BlackElo "2808"]
[WhiteTeam "ITA"]
[BlackTeam "TUR"]
[WhiteClock "0:00:12"]
[BlackClock "0:00:17"]

1. d4 {[%clk 0:01:47]}  a5 {[%clk 0:01:49]} 2. e4 {[%clk 0:01:38]}  d6 {[%clk 0:01:49]} 3. Nc3 {[%clk 0:01:34]}  Nf6 {[%clk 0:01:48]} 4. Nf3 {[%clk 0:01:34]}  c6 {[%clk 0:01:44]} 5. a4 {[%clk 0:01:28]}  Qc7 {[%clk 0:01:41]} 6. Bc4 {[%clk 0:01:24]}  h6 {[%clk 0:01:29]} 7. O-O {[%clk 0:01:24]}  e5 {[%clk 0:01:28]} 8. h3 {[%clk 0:01:23]}  Be7 {[%clk 0:01:28]} 9. Re1 {[%clk 0:01:23]}  O-O {[%clk 0:01:28]} 10. Be3 {[%clk 0:01:22]}  Nbd7 {[%clk 0:01:26]} 11. Ba2 {[%clk 0:01:20]}  Re8 {[%clk 0:01:21]} 12. Qd2 {[%clk 0:01:16]}  Bf8 {[%clk 0:01:20]} 13. Nh4 {[%clk 0:01:08]}  exd4 {[%clk 0:01:19]} 14. Bxd4 {[%clk 0:01:08]}  Qd8 {[%clk 0:01:03]} 15. Ng6 {[%clk 0:00:53]}  Nc5 {[%clk 0:00:41]} 16. Bxc5 {[%clk 0:00:37]}  dxc5 {[%clk 0:00:42]} 17. Qxd8 {[%clk 0:00:37]}  Rxd8 {[%clk 0:00:43]} 18. Rad1 {[%clk 0:00:35]}  Be6 {[%clk 0:00:32]} 19. Bxe6 {[%clk 0:00:34]}  fxe6 {[%clk 0:00:33]} 20. Nxf8 {[%clk 0:00:34]}  Kxf8 {[%clk 0:00:34]} 21. f3 {[%clk 0:00:33]}  Ke7 {[%clk 0:00:34]} 22. Kf2 {[%clk 0:00:34]}  Nd7 {[%clk 0:00:33]} 23. f4 {[%clk 0:00:28]}  g5 {[%clk 0:00:31]} 24. g3 {[%clk 0:00:28]}  Rg8 {[%clk 0:00:28]} 25. Rd3 {[%clk 0:00:22]}  gxf4 {[%clk 0:00:25]} 26. gxf4 {[%clk 0:00:22]}  Raf8 {[%clk 0:00:26]} 27. Red1 {[%clk 0:00:17]}  Ne5 {[%clk 0:00:25]} 28. Rg3 {[%clk 0:00:07]}  Rxf4+ {[%clk 0:00:25]} 29. Ke3 {[%clk 0:00:07]}  Rff8 {[%clk 0:00:18]} 30. Rxg8 {[%clk 0:00:07]}  Rxg8 {[%clk 0:00:19]} 31. b3 {[%clk 0:00:07]}  Rg3+ {[%clk 0:00:18]} 32. Kf4 {[%clk 0:00:06]}  Rxc3 {[%clk 0:00:18]} 33. Kxe5 {[%clk 0:00:07]}  Rxc2 {[%clk 0:00:14]} 34. Rd6 {[%clk 0:00:07]}  c4 {[%clk 0:00:11]} 35. Rxe6+ {[%clk 0:00:08]}  Kd7 {[%clk 0:00:11]} 36. bxc4 {[%clk 0:00:08]}  Rxc4 {[%clk 0:00:11]} 37. Rxh6 {[%clk 0:00:09]}  Rxa4 {[%clk 0:00:11]} 38. Rh7+ {[%clk 0:00:09]}  Kc8 {[%clk 0:00:11]} 39. Kd6 {[%clk 0:00:09]}  Rd4+ {[%clk 0:00:11]} 40. Ke5 {[%clk 0:00:09]}  Rd1 {[%clk 0:00:11]} 41. Ke6 {[%clk 0:00:09]}  a4 {[%clk 0:00:11]} 42. e5 {[%clk 0:00:09]}  a3 {[%clk 0:00:11]} 43. Rh4 {[%clk 0:00:10]}  a2 {[%clk 0:00:11]} 44. Ra4 {[%clk 0:00:10]}  a1=Q {[%clk 0:00:12]} 45. Rxa1 {[%clk 0:00:10]}  Rxa1 {[%clk 0:00:12]} 46. Kf7 {[%clk 0:00:10]}  Rh1 {[%clk 0:00:13]} 47. e6 {[%clk 0:00:10]}  Rxh3 {[%clk 0:00:13]} 48. e7 {[%clk 0:00:11]}  Rh7+ {[%clk 0:00:14]} 49. Kf8 {[%clk 0:00:09]}  Rxe7 {[%clk 0:00:14]} 50. Kxe7 {[%clk 0:00:10]}  c5 {[%clk 0:00:15]} 51. Kd6 {[%clk 0:00:11]}  c4 {[%clk 0:00:16]} 52. Kc5 {[%clk 0:00:12]}  c3 {[%clk 0:00:17]} 0-1

[Event "January 9 Early 2024"]
[Site "https://www.chess.com"]
[Date "2024.01.11"]
[Round "5"]
[White "Martin Fuentes, Alberto"]
[Black "Zheenbekov, Nurgazy"]
[Result "1-0"]
[Board "208"]
[TimeControl "180+1"]
[WhiteFideId "2292289"]
[BlackFideId "13800485"]
[WhiteElo "2625"]
[BlackElo "2442"]
[WhiteTeam "ESP"]
[BlackTeam "KGZ"]
[WhiteClock "0:00:45"]
[BlackClock "0:00:15"]

1. e4 {[%clk 0:03:00]}  c6 {[%clk 0:02:59]} 2. Nc3 {[%clk 0:02:58]}  d5 {[%clk 0:02:58]} 3. g3 {[%clk 0:02:58]}  dxe4 {[%clk 0:02:56]} 4. Nxe4 {[%clk 0:02:59]}  Nf6 {[%clk 0:02:56]} 5. Bg2 {[%clk 0:02:58]}  Nxe4 {[%clk 0:02:53]} 6. Bxe4 {[%clk 0:02:56]}  Nd7 {[%clk 0:02:52]} 7. Ne2 {[%clk 0:02:56]}  Nf6 {[%clk 0:02:52]} 8. Bg2 {[%clk 0:02:57]}  e5 {[%clk 0:02:52]} 9. O-O {[%clk 0:02:57]}  Bd6 {[%clk 0:02:51]} 10. d4 {[%clk 0:02:57]}  exd4 {[%clk 0:02:49]} 11. Nxd4 {[%clk 0:02:56]}  O-O {[%clk 0:02:48]} 12. c3 {[%clk 0:02:56]}  Bg4 {[%clk 0:02:47]} 13. Qc2 {[%clk 0:02:55]}  Qc8 {[%clk 0:02:34]} 14. Bg5 {[%clk 0:02:51]}  Nd5 {[%clk 0:02:32]} 15. a3 {[%clk 0:02:47]}  h6 {[%clk 0:02:30]} 16. Bd2 {[%clk 0:02:44]}  Bh3 {[%clk 0:02:24]} 17. Rae1 {[%clk 0:02:42]}  Bxg2 {[%clk 0:02:23]} 18. Kxg2 {[%clk 0:02:43]}  Re8 {[%clk 0:02:14]} 19. Nf5 {[%clk 0:02:41]}  Bf8 {[%clk 0:02:13]} 20. c4 {[%clk 0:02:37]}  Ne7 {[%clk 0:02:03]} 21. Nd6 {[%clk 0:02:36]}  Qd7 {[%clk 0:01:56]} 22. Nxe8 {[%clk 0:02:35]}  Rxe8 {[%clk 0:01:56]} 23. Bc3 {[%clk 0:02:31]}  Rc8 {[%clk 0:01:55]} 24. Rd1 {[%clk 0:02:29]}  Qc7 {[%clk 0:01:55]} 25. Rfe1 {[%clk 0:02:29]}  c5 {[%clk 0:01:55]} 26. Qe4 {[%clk 0:02:29]}  Nc6 {[%clk 0:01:53]} 27. b3 {[%clk 0:02:26]}  a5 {[%clk 0:01:52]} 28. a4 {[%clk 0:02:26]}  Qb6 {[%clk 0:01:49]} 29. Qc2 {[%clk 0:02:23]}  Nd4 {[%clk 0:01:45]} 30. Bxd4 {[%clk 0:02:19]}  cxd4 {[%clk 0:01:45]} 31. Qf5 {[%clk 0:02:20]}  Rd8 {[%clk 0:01:42]} 32. Rd3 {[%clk 0:02:19]}  Bb4 {[%clk 0:01:35]} 33. Re5 {[%clk 0:02:18]}  Bc3 {[%clk 0:01:33]} 34. Rd5 {[%clk 0:02:14]}  Re8 {[%clk 0:01:33]} 35. Rd7 {[%clk 0:02:10]}  Rf8 {[%clk 0:01:29]} 36. Rf3 {[%clk 0:02:06]}  Qc6 {[%clk 0:01:13]} 37. Rxf7 {[%clk 0:02:06]}  Qxf3+ {[%clk 0:01:13]} 38. Qxf3 {[%clk 0:02:03]}  Rxf7 {[%clk 0:01:13]} 39. Qd5 {[%clk 0:02:04]}  g6 {[%clk 0:01:08]} 40. f4 {[%clk 0:02:00]}  Kg7 {[%clk 0:01:04]} 41. Kf3 {[%clk 0:01:57]}  Re7 {[%clk 0:01:04]} 42. h4 {[%clk 0:01:53]}  h5 {[%clk 0:01:04]} 43. Kg2 {[%clk 0:01:50]}  Kf8 {[%clk 0:00:47]} 44. f5 {[%clk 0:01:48]}  gxf5 {[%clk 0:00:45]} 45. Qxf5+ {[%clk 0:01:48]}  Ke8 {[%clk 0:00:39]} 46. Qxh5+ {[%clk 0:01:48]}  Kd8 {[%clk 0:00:39]} 47. Qh8+ {[%clk 0:01:44]}  Kc7 {[%clk 0:00:39]} 48. h5 {[%clk 0:01:44]}  Rd7 {[%clk 0:00:36]} 49. h6 {[%clk 0:01:41]}  d3 {[%clk 0:00:34]} 50. Qxc3 {[%clk 0:01:37]}  d2 {[%clk 0:00:34]} 51. Qe5+ {[%clk 0:01:29]}  Kc8 {[%clk 0:00:30]} 52. Qe8+ {[%clk 0:01:01]}  Kc7 {[%clk 0:00:29]} 53. Qe5+ {[%clk 0:01:00]}  Kb6 {[%clk 0:00:21]} 54. Qb5+ {[%clk 0:00:55]}  Kc7 {[%clk 0:00:18]} 55. h7 {[%clk 0:00:45]}  Rxh7 {[%clk 0:00:15]} 56. Qxa5+ {[%clk 0:00:45]} 1-0